[Event "December 5 Late 2023"]
[Site "https://www.chess.com"]
[Date "2023.12.05"]
[Round "4"]
[White "Grigoriants, Sergey"]
[Black "Chor, Kevin"]
[Result "1-0"]
[Board "36"]
[TimeControl "180+1"]
[WhiteFideId "4130804"]
[BlackFideId "2090740"]
[WhiteElo "2927"]
[BlackElo "2595"]
[WhiteTeam "HUN"]
[BlackTeam "USA"]
[WhiteClock "0:01:43"]
[BlackClock "0:01:49"]

1. d4 {[%clk 0:02:55]}  Nf6 {[%clk 0:02:59]} 2. c4 {[%clk 0:02:55]}  g6 {[%clk 0:03:00]} 3. f3 {[%clk 0:02:54]}  d5 {[%clk 0:02:59]} 4. cxd5 {[%clk 0:02:53]}  Nxd5 {[%clk 0:03:00]} 5. e4 {[%clk 0:02:53]}  Nb6 {[%clk 0:03:00]} 6. Nc3 {[%clk 0:02:54]}  Bg7 {[%clk 0:03:00]} 7. Be3 {[%clk 0:02:54]}  O-O {[%clk 0:02:56]} 8. Qd2 {[%clk 0:02:55]}  c6 {[%clk 0:02:52]} 9. h4 {[%clk 0:02:52]}  e5 {[%clk 0:02:52]} 10. O-O-O {[%clk 0:02:50]}  Be6 {[%clk 0:02:41]} 11. h5 {[%clk 0:02:46]}  exd4 {[%clk 0:02:41]} 12. Bxd4 {[%clk 0:02:46]}  Qxd4 {[%clk 0:02:39]} 13. Qxd4 {[%clk 0:02:45]}  Bxd4 {[%clk 0:02:40]} 14. Rxd4 {[%clk 0:02:46]}  N8d7 {[%clk 0:02:35]} 15. Nh3 {[%clk 0:02:43]}  Nc5 {[%clk 0:02:34]} 16. Nf4 {[%clk 0:02:25]}  Bxa2 {[%clk 0:02:31]} 17. Kc2 {[%clk 0:01:57]}  Rfd8 {[%clk 0:02:28]} 18. Rxd8+ {[%clk 0:01:47]}  Rxd8 {[%clk 0:02:29]} 19. Be2 {[%clk 0:01:46]}  a5 {[%clk 0:01:49]} 20. Nxa2 {[%clk 0:01:43]} 1-0

[Event "December 5 Late 2023"]
[Site "https://www.chess.com"]
[Date "2023.12.05"]
[Round "4"]
[White "Maksimovic, Bojan"]
[Black "Taboas Rodriguez, Daniel"]
[Result "1-0"]
[Board "37"]
[TimeControl "180+1"]
[WhiteFideId "14408120"]
[BlackFideId "2208466"]
[WhiteElo "2916"]
[BlackElo "2581"]
[WhiteTeam "BIH"]
[BlackTeam "ESP"]
[WhiteClock "0:01:24"]
[BlackClock "0:01:27"]

1. e4 {[%clk 0:03:00]}  e5 {[%clk 0:02:59]} 2. Nf3 {[%clk 0:03:00]}  Nc6 {[%clk 0:03:00]} 3. Bb5 {[%clk 0:03:00]}  Nf6 {[%clk 0:03:00]} 4. O-O {[%clk 0:03:01]}  Nxe4 {[%clk 0:03:00]} 5. Re1 {[%clk 0:03:01]}  Nd6 {[%clk 0:03:00]} 6. Nxe5 {[%clk 0:03:02]}  Be7 {[%clk 0:03:00]} 7. Bf1 {[%clk 0:03:02]}  Nxe5 {[%clk 0:02:57]} 8. Rxe5 {[%clk 0:03:03]}  O-O {[%clk 0:02:58]} 9. d4 {[%clk 0:03:04]}  Bf6 {[%clk 0:02:55]} 10. Re1 {[%clk 0:03:04]}  Nf5 {[%clk 0:02:55]} 11. c3 {[%clk 0:03:04]}  d5 {[%clk 0:02:55]} 12. Nd2 {[%clk 0:03:02]}  Nd6 {[%clk 0:02:55]} 13. Nf3 {[%clk 0:02:59]}  Bg4 {[%clk 0:02:53]} 14. Bf4 {[%clk 0:02:57]}  Qd7 {[%clk 0:02:49]} 15. h3 {[%clk 0:02:35]}  Bxf3 {[%clk 0:02:47]} 16. Qxf3 {[%clk 0:02:35]}  c6 {[%clk 0:02:48]} 17. Bd3 {[%clk 0:02:26]}  Rfe8 {[%clk 0:02:46]} 18. Qg4 {[%clk 0:02:05]}  Qxg4 {[%clk 0:02:42]} 19. hxg4 {[%clk 0:02:05]}  Rxe1+ {[%clk 0:02:25]} 20. Rxe1 {[%clk 0:02:06]}  Re8 {[%clk 0:02:25]} 21. Rxe8+ {[%clk 0:01:49]}  Nxe8 {[%clk 0:02:26]} 22. Bf5 {[%clk 0:01:49]}  Bd8 {[%clk 0:02:02]} 23. Bc8 {[%clk 0:01:44]}  Bc7 {[%clk 0:02:02]} 24. Bxc7 {[%clk 0:01:41]}  Nxc7 {[%clk 0:02:03]} 25. Bxb7 {[%clk 0:01:42]}  Kf8 {[%clk 0:01:58]} 26. Bxc6 {[%clk 0:01:42]}  Ke7 {[%clk 0:01:59]} 27. f3 {[%clk 0:01:40]}  Kd6 {[%clk 0:02:00]} 28. Ba4 {[%clk 0:01:40]}  Ne6 {[%clk 0:01:58]} 29. Kf2 {[%clk 0:01:38]}  Nf4 {[%clk 0:01:57]} 30. Bc2 {[%clk 0:01:39]}  h6 {[%clk 0:01:56]} 31. g3 {[%clk 0:01:39]}  Ne6 {[%clk 0:01:56]} 32. f4 {[%clk 0:01:39]}  g5 {[%clk 0:01:56]} 33. Ke3 {[%clk 0:01:39]}  f6 {[%clk 0:01:56]} 34. Bf5 {[%clk 0:01:37]}  Nc7 {[%clk 0:01:56]} 35. Bd3 {[%clk 0:01:36]}  Ne6 {[%clk 0:01:55]} 36. b3 {[%clk 0:01:37]}  a5 {[%clk 0:01:55]} 37. c4 {[%clk 0:01:35]}  Nc7 {[%clk 0:01:53]} 38. c5+ {[%clk 0:01:35]}  Kc6 {[%clk 0:01:52]} 39. a3 {[%clk 0:01:36]}  Nb5 {[%clk 0:01:43]} 40. Bxb5+ {[%clk 0:01:35]}  Kxb5 {[%clk 0:01:43]} 41. a4+ {[%clk 0:01:31]}  Ka6 {[%clk 0:01:30]} 42. fxg5 {[%clk 0:01:31]}  hxg5 {[%clk 0:01:30]} 43. Kd3 {[%clk 0:01:31]}  Kb7 {[%clk 0:01:30]} 44. Kc3 {[%clk 0:01:31]}  Ka7 {[%clk 0:01:30]} 45. b4 {[%clk 0:01:31]}  Ka6 {[%clk 0:01:30]} 46. bxa5 {[%clk 0:01:25]}  Kxa5 {[%clk 0:01:31]} 47. Kb3 {[%clk 0:01:25]}  Ka6 {[%clk 0:01:31]} 48. Kb4 {[%clk 0:01:25]}  Kb7 {[%clk 0:01:30]} 49. Kb5 {[%clk 0:01:25]}  Kc7 {[%clk 0:01:27]} 50. c6 {[%clk 0:01:24]} 1-0

[Event "December 5 Late 2023"]
[Site "https://www.chess.com"]
[Date "2023.12.05"]
[Round "4"]
[White "Soderstrom, Adrian"]
[Black "Alexandre, Anne Shopie Elizabeth"]
[Result "0-1"]
[Board "38"]
[TimeControl "180+1"]
[WhiteFideId "1745786"]
[BlackFideId "11902418"]
[WhiteElo "2580"]
[BlackElo "2861"]
[WhiteTeam "SWE"]
[BlackTeam "HAI"]
[WhiteClock "0:00:24"]
[BlackClock "0:02:19"]

1. h4 {[%clk 0:02:57]}  a6 {[%clk 0:02:58]} 2. e4 {[%clk 0:02:56]}  c5 {[%clk 0:02:57]} 3. d4 {[%clk 0:02:56]}  cxd4 {[%clk 0:02:57]} 4. c3 {[%clk 0:02:57]}  dxc3 {[%clk 0:02:57]} 5. Nxc3 {[%clk 0:02:58]}  Nc6 {[%clk 0:02:57]} 6. Nf3 {[%clk 0:02:57]}  d6 {[%clk 0:02:57]} 7. Bc4 {[%clk 0:02:51]}  Nf6 {[%clk 0:02:57]} 8. Bg5 {[%clk 0:02:32]}  e6 {[%clk 0:02:56]} 9. h5 {[%clk 0:02:28]}  h6 {[%clk 0:02:55]} 10. Bh4 {[%clk 0:02:28]}  Be7 {[%clk 0:02:55]} 11. Qe2 {[%clk 0:02:22]}  Qc7 {[%clk 0:02:54]} 12. Rc1 {[%clk 0:02:19]}  b5 {[%clk 0:02:50]} 13. Bb3 {[%clk 0:02:04]}  Bd7 {[%clk 0:02:48]} 14. O-O {[%clk 0:02:00]}  Qb6 {[%clk 0:02:46]} 15. Nd5 {[%clk 0:01:41]}  exd5 {[%clk 0:02:36]} 16. exd5 {[%clk 0:01:42]}  Ne5 {[%clk 0:02:36]} 17. Nxe5 {[%clk 0:01:40]}  dxe5 {[%clk 0:02:37]} 18. Qxe5 {[%clk 0:01:40]}  Qd6 {[%clk 0:02:34]} 19. Qe2 {[%clk 0:01:36]}  O-O {[%clk 0:02:30]} 20. Bg3 {[%clk 0:01:34]}  Qb4 {[%clk 0:02:30]} 21. Qd3 {[%clk 0:00:53]}  Bd6 {[%clk 0:02:25]} 22. a3 {[%clk 0:00:53]}  Qe4 {[%clk 0:02:25]} 23. Qc3 {[%clk 0:00:40]}  Bxg3 {[%clk 0:02:24]} 24. Qxg3 {[%clk 0:00:41]}  Nxh5 {[%clk 0:02:23]} 25. Qd6 {[%clk 0:00:39]}  Nf4 {[%clk 0:02:21]} 26. f3 {[%clk 0:00:32]}  Ne2+ {[%clk 0:02:20]} 27. Kf2 {[%clk 0:00:24]}  Qd4+ {[%clk 0:02:19]} 0-1

[Event "December 5 Late 2023"]
[Site "https://www.chess.com"]
[Date "2023.12.05"]
[Round "4"]
[White "Shuvalova, Polina"]
[Black "Iskusnyh, Sergei"]
[Result "1-0"]
[Board "40"]
[TimeControl "180+1"]
[WhiteFideId "24171760"]
[BlackFideId "4120027"]
[WhiteElo "2846"]
[BlackElo "2575"]
[WhiteTeam "RUS"]
[BlackTeam "RUS"]
[WhiteClock "0:00:41"]
[BlackClock "0:00:00"]

1. e4 {[%clk 0:03:00]}  e6 {[%clk 0:02:59]} 2. d4 {[%clk 0:03:00]}  d5 {[%clk 0:03:00]} 3. Nd2 {[%clk 0:03:01]}  c5 {[%clk 0:03:00]} 4. exd5 {[%clk 0:03:01]}  Qxd5 {[%clk 0:02:59]} 5. Ngf3 {[%clk 0:03:02]}  cxd4 {[%clk 0:02:59]} 6. Bc4 {[%clk 0:03:02]}  Qd6 {[%clk 0:02:59]} 7. O-O {[%clk 0:03:03]}  Nf6 {[%clk 0:02:58]} 8. Nb3 {[%clk 0:03:03]}  Nc6 {[%clk 0:02:58]} 9. Nbxd4 {[%clk 0:03:04]}  Nxd4 {[%clk 0:02:59]} 10. Nxd4 {[%clk 0:03:05]}  Be7 {[%clk 0:02:58]} 11. Re1 {[%clk 0:03:05]}  O-O {[%clk 0:02:50]} 12. c3 {[%clk 0:03:03]}  Qc7 {[%clk 0:02:43]} 13. Bd3 {[%clk 0:03:03]}  Bd7 {[%clk 0:02:35]} 14. Qf3 {[%clk 0:03:01]}  Rad8 {[%clk 0:02:19]} 15. Bg5 {[%clk 0:02:56]}  h6 {[%clk 0:02:14]} 16. Bh4 {[%clk 0:02:44]}  Bc8 {[%clk 0:01:54]} 17. Rad1 {[%clk 0:02:42]}  Rd5 {[%clk 0:01:33]} 18. Be4 {[%clk 0:02:36]}  Nxe4 {[%clk 0:01:22]} 19. Bxe7 {[%clk 0:02:13]}  Qxe7 {[%clk 0:01:17]} 20. Qxe4 {[%clk 0:02:12]}  Rfd8 {[%clk 0:01:13]} 21. Qe2 {[%clk 0:01:55]}  Qf6 {[%clk 0:01:11]} 22. h3 {[%clk 0:01:51]}  e5 {[%clk 0:01:06]} 23. Nf3 {[%clk 0:01:51]}  Be6 {[%clk 0:01:01]} 24. Rxd5 {[%clk 0:01:47]}  Bxd5 {[%clk 0:00:56]} 25. Nxe5 {[%clk 0:01:35]}  Bxa2 {[%clk 0:00:55]} 26. c4 {[%clk 0:01:29]}  Bb3 {[%clk 0:00:46]} 27. Qe3 {[%clk 0:01:28]}  Ba4 {[%clk 0:00:43]} 28. Qxa7 {[%clk 0:01:25]}  Bc6 {[%clk 0:00:26]} 29. Nxc6 {[%clk 0:01:16]}  bxc6 {[%clk 0:00:26]} 30. Qb6 {[%clk 0:01:11]}  Rd2 {[%clk 0:00:24]} 31. b3 {[%clk 0:01:10]}  g6 {[%clk 0:00:24]} 32. Qe3 {[%clk 0:01:08]}  Rd6 {[%clk 0:00:20]} 33. Qxh6 {[%clk 0:01:07]}  Re6 {[%clk 0:00:16]} 34. Rxe6 {[%clk 0:01:06]}  Qxe6 {[%clk 0:00:17]} 35. Qe3 {[%clk 0:01:06]}  Qf5 {[%clk 0:00:16]} 36. h4 {[%clk 0:01:04]}  c5 {[%clk 0:00:15]} 37. g3 {[%clk 0:01:03]}  Qc2 {[%clk 0:00:14]} 38. Kg2 {[%clk 0:01:04]}  Qf5 {[%clk 0:00:13]} 39. Kg1 {[%clk 0:01:01]}  Qc8 {[%clk 0:00:13]} 40. Qe5 {[%clk 0:00:59]}  Qc6 {[%clk 0:00:11]} 41. Qd5 {[%clk 0:00:56]}  Qb6 {[%clk 0:00:12]} 42. Kg2 {[%clk 0:00:55]}  Qb4 {[%clk 0:00:11]} 43. Qd8+ {[%clk 0:00:54]}  Kg7 {[%clk 0:00:11]} 44. Qc7 {[%clk 0:00:53]}  Qa3 {[%clk 0:00:11]} 45. Qe5+ {[%clk 0:00:53]}  Kg8 {[%clk 0:00:10]} 46. h5 {[%clk 0:00:53]}  gxh5 {[%clk 0:00:10]} 47. Qg5+ {[%clk 0:00:53]}  Kf8 {[%clk 0:00:09]} 48. Qxh5 {[%clk 0:00:53]}  Kg8 {[%clk 0:00:09]} 49. Qg5+ {[%clk 0:00:53]}  Kf8 {[%clk 0:00:09]} 50. Qd8+ {[%clk 0:00:53]}  Kg7 {[%clk 0:00:09]} 51. Qb8 {[%clk 0:00:54]}  Kg6 {[%clk 0:00:08]} 52. Qb6+ {[%clk 0:00:53]}  Kg7 {[%clk 0:00:09]} 53. Kf3 {[%clk 0:00:52]}  Kg8 {[%clk 0:00:08]} 54. Ke4 {[%clk 0:00:50]}  Qb2 {[%clk 0:00:07]} 55. Qxc5 {[%clk 0:00:46]}  Qxb3 {[%clk 0:00:06]} 56. Qg5+ {[%clk 0:00:45]}  Kf8 {[%clk 0:00:05]} 57. Qd8+ {[%clk 0:00:45]}  Kg7 {[%clk 0:00:05]} 58. Qd4+ {[%clk 0:00:46]}  Kf8 {[%clk 0:00:05]} 59. c5 {[%clk 0:00:46]}  Qe6+ {[%clk 0:00:04]} 60. Kf3 {[%clk 0:00:43]}  Qc6+ {[%clk 0:00:03]} 61. Ke3 {[%clk 0:00:44]}  Kg8 {[%clk 0:00:03]} 62. Qg4+ {[%clk 0:00:42]}  Kh7 {[%clk 0:00:00]} 63. Qe4+ {[%clk 0:00:41]} 1-0

[Event "December 5 Late 2023"]
[Site "https://www.chess.com"]
[Date "2023.12.05"]
[Round "4"]
[White "Sivakumar, Shaaketh"]
[Black "Mekhitarian, Krikor Sevag"]
[Result "1-0"]
[Board "41"]
[TimeControl "180+1"]
[WhiteFideId "30940176"]
[BlackFideId "2107660"]
[WhiteElo "2574"]
[BlackElo "2845"]
[WhiteTeam "USA"]
[BlackTeam "BRA"]
[WhiteClock "0:01:32"]
[BlackClock "0:00:00"]

1. Nf3 {[%clk 0:03:00]}  d5 {[%clk 0:02:53]} 2. d4 {[%clk 0:02:55]}  Bf5 {[%clk 0:02:46]} 3. Bf4 {[%clk 0:02:53]}  e6 {[%clk 0:02:45]} 4. e3 {[%clk 0:02:52]}  Nf6 {[%clk 0:02:39]} 5. c4 {[%clk 0:02:51]}  Bxb1 {[%clk 0:02:30]} 6. Qxb1 {[%clk 0:02:49]}  Bb4+ {[%clk 0:02:30]} 7. Kd1 {[%clk 0:02:50]}  c6 {[%clk 0:02:27]} 8. Bd3 {[%clk 0:02:49]}  Bd6 {[%clk 0:02:20]} 9. Bg3 {[%clk 0:02:39]}  O-O {[%clk 0:02:19]} 10. Ke2 {[%clk 0:02:39]}  Qe7 {[%clk 0:02:15]} 11. c5 {[%clk 0:02:39]}  Bc7 {[%clk 0:02:12]} 12. Ne5 {[%clk 0:02:36]}  h6 {[%clk 0:01:56]} 13. b4 {[%clk 0:02:35]}  Rc8 {[%clk 0:01:53]} 14. b5 {[%clk 0:02:33]}  cxb5 {[%clk 0:01:20]} 15. Qxb5 {[%clk 0:02:32]}  b6 {[%clk 0:01:15]} 16. Rhc1 {[%clk 0:02:29]}  a6 {[%clk 0:01:10]} 17. Qb3 {[%clk 0:02:29]}  Bxe5 {[%clk 0:01:03]} 18. Bxe5 {[%clk 0:01:56]}  bxc5 {[%clk 0:01:01]} 19. dxc5 {[%clk 0:01:53]}  Nc6 {[%clk 0:00:56]} 20. Bd6 {[%clk 0:01:53]}  Qd7 {[%clk 0:00:51]} 21. Rab1 {[%clk 0:01:50]}  Ne8 {[%clk 0:00:47]} 22. Qb7 {[%clk 0:01:45]}  Qxb7 {[%clk 0:00:27]} 23. Rxb7 {[%clk 0:01:46]}  Na5 {[%clk 0:00:23]} 24. Rb6 {[%clk 0:01:41]}  Rc6 {[%clk 0:00:20]} 25. Rcb1 {[%clk 0:01:36]}  Nxd6 {[%clk 0:00:17]} 26. cxd6 {[%clk 0:01:35]}  Rd8 {[%clk 0:00:15]} 27. Rxc6 {[%clk 0:01:31]}  Nxc6 {[%clk 0:00:15]} 28. Rb6 {[%clk 0:01:32]}  Ne5 {[%clk 0:00:02]} 29. Bxa6 {[%clk 0:01:33]}  f5 {[%clk 0:00:01]} 30. Bb5 {[%clk 0:01:30]}  Kf7 {[%clk 0:00:01]} 31. a4 {[%clk 0:01:31]}  Kf6 {[%clk 0:00:01]} 32. a5 {[%clk 0:01:31]}  Ra8 {[%clk 0:00:00]} 33. a6 {[%clk 0:01:32]} 1-0

[Event "December 5 Late 2023"]
[Site "https://www.chess.com"]
[Date "2023.12.05"]
[Round "4"]
[White "Osmak, Yuliia"]
[Black "Rustemov, Alexander"]
[Result "0-1"]
[Board "43"]
[TimeControl "180+1"]
[WhiteFideId "14101602"]
[BlackFideId "4119002"]
[WhiteElo "2571"]
[BlackElo "2832"]
[WhiteTeam "UKR"]
[BlackTeam "RUS"]
[WhiteClock "0:00:00"]
[BlackClock "0:00:13"]

1. e4 {[%clk 0:03:00]}  e6 {[%clk 0:02:55]} 2. d4 {[%clk 0:03:00]}  d5 {[%clk 0:02:55]} 3. exd5 {[%clk 0:03:00]}  exd5 {[%clk 0:02:55]} 4. Nf3 {[%clk 0:02:58]}  Bf5 {[%clk 0:02:52]} 5. c4 {[%clk 0:02:37]}  Bxb1 {[%clk 0:02:51]} 6. Rxb1 {[%clk 0:02:35]}  Bb4+ {[%clk 0:02:52]} 7. Bd2 {[%clk 0:02:32]}  Bxd2+ {[%clk 0:02:52]} 8. Qxd2 {[%clk 0:02:32]}  Nf6 {[%clk 0:02:52]} 9. Qb4 {[%clk 0:02:12]}  Qe7+ {[%clk 0:02:47]} 10. Qxe7+ {[%clk 0:02:12]}  Kxe7 {[%clk 0:02:48]} 11. cxd5 {[%clk 0:01:52]}  Nxd5 {[%clk 0:02:43]} 12. Bc4 {[%clk 0:01:52]}  Rd8 {[%clk 0:02:41]} 13. O-O {[%clk 0:01:49]}  Kf8 {[%clk 0:02:41]} 14. Rbc1 {[%clk 0:01:46]}  c6 {[%clk 0:02:40]} 15. Rfe1 {[%clk 0:01:44]}  g6 {[%clk 0:02:20]} 16. Ne5 {[%clk 0:01:33]}  Kg7 {[%clk 0:02:07]} 17. Rcd1 {[%clk 0:01:18]}  h5 {[%clk 0:02:03]} 18. g3 {[%clk 0:01:15]}  Kf6 {[%clk 0:02:00]} 19. Rd3 {[%clk 0:01:10]}  Kg7 {[%clk 0:01:58]} 20. Rf3 {[%clk 0:01:07]}  Rf8 {[%clk 0:01:41]} 21. Bxd5 {[%clk 0:00:50]}  cxd5 {[%clk 0:01:41]} 22. Rc1 {[%clk 0:00:51]}  Na6 {[%clk 0:01:35]} 23. a3 {[%clk 0:00:30]}  f6 {[%clk 0:01:31]} 24. Nd3 {[%clk 0:00:25]}  Rac8 {[%clk 0:01:29]} 25. Rxc8 {[%clk 0:00:19]}  Rxc8 {[%clk 0:01:28]} 26. Nf4 {[%clk 0:00:19]}  Rc1+ {[%clk 0:01:15]} 27. Kg2 {[%clk 0:00:19]}  Nc7 {[%clk 0:01:16]} 28. Re3 {[%clk 0:00:18]}  Kf7 {[%clk 0:01:15]} 29. Rb3 {[%clk 0:00:16]}  b6 {[%clk 0:01:13]} 30. h4 {[%clk 0:00:13]}  Rc2 {[%clk 0:01:10]} 31. a4 {[%clk 0:00:10]}  g5 {[%clk 0:01:02]} 32. hxg5 {[%clk 0:00:10]}  fxg5 {[%clk 0:01:03]} 33. Nxh5 {[%clk 0:00:10]}  Ne6 {[%clk 0:01:01]} 34. Rf3+ {[%clk 0:00:08]}  Ke7 {[%clk 0:01:01]} 35. Re3 {[%clk 0:00:07]}  Kd6 {[%clk 0:01:01]} 36. Ng7 {[%clk 0:00:05]}  Nxd4 {[%clk 0:00:58]} 37. Ne8+ {[%clk 0:00:04]}  Kc5 {[%clk 0:00:56]} 38. Nf6 {[%clk 0:00:02]}  Rxb2 {[%clk 0:00:52]} 39. Re5 {[%clk 0:00:02]}  Kc4 {[%clk 0:00:47]} 40. Rxd5 {[%clk 0:00:02]}  Ra2 {[%clk 0:00:42]} 41. Rxg5 {[%clk 0:00:02]}  Rxa4 {[%clk 0:00:42]} 42. Rg4 {[%clk 0:00:03]}  b5 {[%clk 0:00:40]} 43. Nd7 {[%clk 0:00:03]}  b4 {[%clk 0:00:37]} 44. Ne5+ {[%clk 0:00:03]}  Kc3 {[%clk 0:00:37]} 45. Re4 {[%clk 0:00:02]}  b3 {[%clk 0:00:37]} 46. Re3+ {[%clk 0:00:01]}  Kc2 {[%clk 0:00:36]} 47. Nd3 {[%clk 0:00:01]}  b2 {[%clk 0:00:32]} 48. Nxb2 {[%clk 0:00:01]}  Kxb2 {[%clk 0:00:32]} 49. g4 {[%clk 0:00:01]}  Nc2 {[%clk 0:00:30]} 50. Rg3 {[%clk 0:00:01]}  Ne1+ {[%clk 0:00:24]} 51. Kf1 {[%clk 0:00:01]}  Ra1 {[%clk 0:00:22]} 52. Ke2 {[%clk 0:00:01]}  Nc2 {[%clk 0:00:23]} 53. g5 {[%clk 0:00:01]}  Re1+ {[%clk 0:00:22]} 54. Kd2 {[%clk 0:00:01]}  Re8 {[%clk 0:00:23]} 55. g6 {[%clk 0:00:02]}  Nd4 {[%clk 0:00:22]} 56. g7 {[%clk 0:00:01]}  Rg8 {[%clk 0:00:22]} 57. Rg4 {[%clk 0:00:01]}  Nf5 {[%clk 0:00:17]} 58. Rg5 {[%clk 0:00:01]}  Nd6 {[%clk 0:00:13]} 59. Rg6 {[%clk 0:00:00]}  Nc4+ {[%clk 0:00:13]} 0-1

[Event "December 5 Late 2023"]
[Site "https://www.chess.com"]
[Date "2023.12.05"]
[Round "4"]
[White "Yang, Kevin"]
[Black "Gadimbayli, Abdulla"]
[Result "0-1"]
[Board "46"]
[TimeControl "180+1"]
[WhiteFideId "30908485"]
[BlackFideId "13404938"]
[WhiteElo "2562"]
[BlackElo "2819"]
[WhiteTeam "USA"]
[BlackTeam "AZE"]
[WhiteClock "0:00:00"]
[BlackClock "0:01:02"]

1. d4 {[%clk 0:02:56]}  d5 {[%clk 0:02:45]} 2. c4 {[%clk 0:02:55]}  e5 {[%clk 0:02:45]} 3. dxe5 {[%clk 0:02:53]}  d4 {[%clk 0:02:46]} 4. Nf3 {[%clk 0:02:49]}  Nc6 {[%clk 0:02:46]} 5. a3 {[%clk 0:02:34]}  Nge7 {[%clk 0:02:45]} 6. e3 {[%clk 0:02:29]}  Bg4 {[%clk 0:02:44]} 7. Qa4 {[%clk 0:02:16]}  dxe3 {[%clk 0:02:27]} 8. Bxe3 {[%clk 0:02:09]}  Bxf3 {[%clk 0:02:27]} 9. gxf3 {[%clk 0:02:08]}  Qd7 {[%clk 0:02:27]} 10. f4 {[%clk 0:01:45]}  Nxe5 {[%clk 0:02:24]} 11. Qxd7+ {[%clk 0:01:45]}  Nxd7 {[%clk 0:02:25]} 12. Bh3 {[%clk 0:01:42]}  f5 {[%clk 0:02:15]} 13. Nc3 {[%clk 0:01:38]}  g6 {[%clk 0:02:15]} 14. Nb5 {[%clk 0:01:27]}  O-O-O {[%clk 0:02:10]} 15. Nxa7+ {[%clk 0:01:24]}  Kb8 {[%clk 0:02:10]} 16. Nb5 {[%clk 0:01:24]}  Bg7 {[%clk 0:02:11]} 17. O-O-O {[%clk 0:01:22]}  Nf6 {[%clk 0:02:09]} 18. Bd4 {[%clk 0:01:15]}  Nc6 {[%clk 0:02:00]} 19. Bc3 {[%clk 0:01:02]}  Nh5 {[%clk 0:01:58]} 20. Bxg7 {[%clk 0:01:01]}  Nxg7 {[%clk 0:01:59]} 21. Bg2 {[%clk 0:00:57]}  Ne6 {[%clk 0:01:59]} 22. Bxc6 {[%clk 0:00:47]}  bxc6 {[%clk 0:02:00]} 23. Nc3 {[%clk 0:00:32]}  Nxf4 {[%clk 0:01:59]} 24. Kc2 {[%clk 0:00:32]}  Nh3 {[%clk 0:01:54]} 25. f3 {[%clk 0:00:31]}  Ng5 {[%clk 0:01:47]} 26. Rhf1 {[%clk 0:00:23]}  Rxd1 {[%clk 0:01:46]} 27. Kxd1 {[%clk 0:00:23]}  Re8 {[%clk 0:01:46]} 28. f4 {[%clk 0:00:15]}  Ne6 {[%clk 0:01:45]} 29. Kd2 {[%clk 0:00:12]}  Rd8+ {[%clk 0:01:45]} 30. Ke3 {[%clk 0:00:11]}  Re8 {[%clk 0:01:32]} 31. Rd1 {[%clk 0:00:08]}  c5 {[%clk 0:01:29]} 32. Nd5 {[%clk 0:00:05]}  Nd4+ {[%clk 0:01:23]} 33. Kd3 {[%clk 0:00:05]}  c6 {[%clk 0:01:11]} 34. Nc3 {[%clk 0:00:04]}  Kc7 {[%clk 0:01:10]} 35. b4 {[%clk 0:00:04]}  Ne6 {[%clk 0:01:09]} 36. Ke3 {[%clk 0:00:03]}  Ra8 {[%clk 0:01:06]} 37. Ra1 {[%clk 0:00:01]}  cxb4 {[%clk 0:01:06]} 38. Nb1 {[%clk 0:00:00]}  b3 {[%clk 0:01:02]} 0-1

[Event "December 5 Late 2023"]
[Site "https://www.chess.com"]
[Date "2023.12.05"]
[Round "4"]
[White "KhalilMousavi98"]
[Black "aksuliini1"]
[Result "1-0"]
[Board "47"]
[TimeControl "180+1"]
[WhiteElo "2801"]
[BlackElo "2558"]
[WhiteClock "0:00:37"]
[BlackClock "0:00:06"]

1. d4 {[%clk 0:03:00]}  Nf6 {[%clk 0:02:59]} 2. c4 {[%clk 0:03:00]}  e6 {[%clk 0:03:00]} 3. Nf3 {[%clk 0:03:01]}  d5 {[%clk 0:03:00]} 4. Nc3 {[%clk 0:03:01]}  Bb4 {[%clk 0:03:00]} 5. Qa4+ {[%clk 0:02:58]}  Nc6 {[%clk 0:03:00]} 6. e3 {[%clk 0:02:57]}  O-O {[%clk 0:03:00]} 7. Qc2 {[%clk 0:02:56]}  Re8 {[%clk 0:02:56]} 8. Bd2 {[%clk 0:02:50]}  Bf8 {[%clk 0:02:52]} 9. a3 {[%clk 0:02:47]}  e5 {[%clk 0:02:51]} 10. cxd5 {[%clk 0:02:45]}  Nxd4 {[%clk 0:02:17]} 11. exd4 {[%clk 0:02:34]}  exd4+ {[%clk 0:02:16]} 12. Ne2 {[%clk 0:02:34]}  Qxd5 {[%clk 0:02:14]} 13. Qd3 {[%clk 0:02:34]}  c5 {[%clk 0:02:10]} 14. O-O-O {[%clk 0:02:27]}  Bf5 {[%clk 0:02:02]} 15. Nf4 {[%clk 0:02:24]}  Qd7 {[%clk 0:02:00]} 16. Qb5 {[%clk 0:02:22]}  Qc7 {[%clk 0:01:50]} 17. Bd3 {[%clk 0:02:22]}  a6 {[%clk 0:01:49]} 18. Qc4 {[%clk 0:02:12]}  b5 {[%clk 0:01:46]} 19. Qc2 {[%clk 0:02:09]}  Bxd3 {[%clk 0:01:38]} 20. Nxd3 {[%clk 0:02:03]}  Rad8 {[%clk 0:01:34]} 21. Kb1 {[%clk 0:01:57]}  c4 {[%clk 0:01:25]} 22. Bf4 {[%clk 0:01:53]}  Qb6 {[%clk 0:01:22]} 23. Nde5 {[%clk 0:01:38]}  d3 {[%clk 0:01:21]} 24. Qc1 {[%clk 0:01:38]}  Nd5 {[%clk 0:01:15]} 25. Bd2 {[%clk 0:01:30]}  f6 {[%clk 0:01:09]} 26. Ng4 {[%clk 0:01:28]}  Bc5 {[%clk 0:00:57]} 27. Rhe1 {[%clk 0:01:21]}  Bxf2 {[%clk 0:00:45]} 28. Rxe8+ {[%clk 0:01:12]}  Rxe8 {[%clk 0:00:45]} 29. Rf1 {[%clk 0:01:08]}  Bd4 {[%clk 0:00:42]} 30. Re1 {[%clk 0:00:56]}  Rxe1 {[%clk 0:00:38]} 31. Qxe1 {[%clk 0:00:57]}  Kf7 {[%clk 0:00:37]} 32. Qe4 {[%clk 0:00:55]}  h5 {[%clk 0:00:19]} 33. Qxd5+ {[%clk 0:00:53]}  Kg6 {[%clk 0:00:18]} 34. Nh4+ {[%clk 0:00:44]}  Kh7 {[%clk 0:00:14]} 35. Qxh5+ {[%clk 0:00:44]}  Kg8 {[%clk 0:00:14]} 36. Qe8+ {[%clk 0:00:44]}  Kh7 {[%clk 0:00:14]} 37. Ng6 {[%clk 0:00:42]}  c3 {[%clk 0:00:10]} 38. Nf8+ {[%clk 0:00:39]}  Kg8 {[%clk 0:00:06]} 39. Nd7+ {[%clk 0:00:37]} 1-0